bitfinex/quotes_ETHUSD_20241212
["timestamp","ask_amount","ask_price","bid_price","bid_amount"]
[1734016184708,0.2055,3965.9,3964.4,2.01794]
[1734016185009,0.2055,3964.7,3963.4,3.61676]
[1734016185208,0.2055,3964.7,3963.4,1.5983]
[1734016185453,0.2055,3964.7,3963.0,1.5856]
[1734016185454,2.795101,3964.6,3963.0,1.5856]
[1734016185651,0.272771,3964.6,3963.0,1.5856]
[1734016185863,2.52247,3964.4,3962.9,2.53164809]
[1734016186040,0.2055,3964.7,3962.9,2.53164809]
[1734016186347,2.52242,3964.5,3962.9,2.01871]
[1734016186554,2.52242,3964.5,3962.1,0.1656626]
[1734016186757,0.2055,3964.7,3963.2,2.01855]
[1734016187055,1.4672,3964.4,3962.8,2.01876]
[1734016187224,1.4672,3964.4,3962.1,0.1656626]
[1734016187225,0.398961,3964.3,3962.9,2.01871]
[1734016187425,1.4672,3964.4,3962.9,2.01871]
[1734016187759,1.4672,3964.4,3962.3,2.01902]
[1734016187760,1.4672,3964.3,3962.7,2.01882]
[1734016187963,1.4672,3964.5,3962.1,0.1656626]
[1734016188127,1.4672,3961.9,3959.5,2.60750992]
[1734016188329,0.25,3959.4,3959.2,0.12925359]
[1734016188527,0.25,3959.4,3959.1,2.02063]
[1734016189217,0.25,3959.1,3958.8,2.52832869]
[1734016189444,0.25,3958.7,3958.4,2.02099]
[1734016189757,0.25,3959.4,3958.1,0.1656626]
[1734016189965,0.25,3959.3,3958.1,0.29496771]
[1734016190118,0.25,3959.0,3958.6,0.50376741]
[1734016190318,0.25,3958.7,3958.6,0.50376741]
[1734016190513,1.7172,3958.7,3958.6,0.50376741]
[1734016190821,1.88892,3958.7,3958.6,0.50376741]
[1734016191141,0.25,3958.2,3958.1,0.1656626]
[1734016193217,2.2672,3958.2,3958.1,0.1656626]
[1734016194158,2.2672,3958.2,3955.9,2.02228]
[1734016194159,0.25,3956.5,3955.6,2.02241]
[1734016194366,0.25,3957.0,3955.6,0.202241]
[1734016194516,0.17172,3958.7,3955.6,0.202241]
[1734016194517,0.25,3957.2,3956.9,2.02175]
[1734016194717,0.25,3957.2,3957.0,2.02172]
[1734016194920,1.4672,3958.0,3956.7,2.02187]
[1734016194921,0.25,3957.0,3956.7,2.02187]
[1734016195156,0.25,3957.6,3956.5,3.0]
[1734016195356,0.25,3957.6,3957.5,2.02147]
[1734016195562,0.25,3958.5,3957.8,2.02127]
[1734016195774,0.188892,3958.4,3956.7,0.55]
[1734016196065,0.25,3958.2,3957.4,5.02152]
[1734016196265,0.25,3958.4,3957.0,2.02173]
[1734016196436,0.25,3958.2,3957.0,2.02173]
[1734016196632,0.25,3958.2,3957.8,2.02132]
[1734016196871,0.25,3958.2,3956.8,3.23382861]
[1734016196872,0.25,3958.2,3958.0,2.0212]
[1734016197164,0.25,3958.5,3957.0,0.55]
[1734016197335,1.4672,3959.3,3956.6,0.51463458]
[1734016197336,0.25,3957.6,3956.6,0.51463458]
[1734016197538,0.25,3958.2,3957.8,2.02131]
[1734016197751,0.25,3958.2,3956.7,3.0]
[1734016197953,0.25,3957.8,3957.4,2.02149]
[1734016198123,0.25,3957.8,3957.0,3.0]
[1734016198522,0.25,3957.8,3956.5,0.49519249]
[1734016198523,0.25,3957.8,3957.3,2.02157]
[1734016198693,0.25,3957.7,3957.0,2.02171]
[1734016198834,0.25,3957.2,3956.5,0.49519249]
[1734016199183,1.4672,3957.9,3957.3,2.02155]
[1734016199184,0.25,3957.6,3957.3,2.02155]
[1734016199395,0.25,3957.6,3956.6,2.02193]
[1734016199396,0.25,3957.6,3956.5,0.70551174]
[1734016199675,1.7172,3958.5,3956.9,2.02178]
[1734016199978,0.25,3958.5,3958.2,2.02111]
[1734016200198,0.25,3958.2,3957.1,3.0]
[1734016200335,0.25,3958.2,3957.2,2.02161]
[1734016200540,0.25,3957.8,3957.3,2.02154]
[1734016200738,0.25,3958.1,3957.0,4.5129]
[1734016201048,1.4672,3959.2,3958.3,3.0]
[1734016201049,0.25,3959.2,3958.3,3.0]
[1734016201249,0.87706932,3961.8,3959.3,2.02054]
[1734016201250,0.25,3959.9,3959.3,2.02054]
[1734016201465,0.25,3959.9,3958.7,3.0]
[1734016201647,0.25,3959.6,3959.2,2.02057]
[1734016201860,0.25,3959.8,3958.9,2.02076]
[1734016202179,0.25,3959.6,3958.5,3.49919191]
[1734016202400,0.25,3959.8,3959.6,2.02037]
[1734016202567,0.25,3959.8,3959.4,2.02049]
[1734016202771,0.25,3959.8,3959.0,2.02071]
[1734016202955,1.4672,3960.7,3958.7,3.0]
[1734016202956,0.25,3960.2,3958.8,3.0]
[1734016203156,1.4672,3960.7,3959.2,2.02059]
[1734016203157,0.25,3960.3,3959.2,2.02059]
[1734016203405,0.25,3959.8,3959.2,2.02059]
[1734016203698,3.99202,3960.7,3958.5,3.0]
[1734016203699,0.25,3959.2,3958.5,3.0]
[1734016203997,0.25,3959.2,3958.1,3.0]
[1734016203998,0.25,3960.2,3958.7,3.55]
[1734016204207,0.25,3960.3,3959.7,2.02033]
[1734016204501,1.4672,3960.7,3958.7,0.55]
[1734016204502,0.25,3959.9,3959.8,2.02026]
[1734016204659,0.25,3960.3,3959.2,3.23382861]
[1734016204861,0.25,3960.1,3960.0,2.02018]
[1734016205074,0.25,3960.1,3960.0,2.0202]
[1734016205280,0.25,3960.3,3959.4,1.5264]
[1734016205617,0.25,3960.7,3959.8,6.23382861]
[1734016205898,0.25,3961.1,3960.4,2.01998]
[1734016206055,0.25,3960.7,3959.5,3.0]
[1734016206258,0.25,3961.1,3959.9,3.0]
[1734016206498,0.25,3961.1,3960.9,2.01972]
[1734016206708,0.25,3961.3,3961.1,2.01963]
[1734016207000,0.25,3961.3,3960.6,1.6011]
[1734016207001,0.25,3961.5,3960.6,1.6011]
[1734016207219,0.25,3961.5,3960.6,1.76121]
[1734016207372,0.25,3961.5,3960.6,4.6011]
[1734016207575,0.25,3961.3,3960.5,3.0]
[1734016207776,0.25,3961.3,3959.8,6.89281861]
[1734016207777,0.25,3960.4,3959.8,3.65896]
[1734016207964,0.25,3960.4,3959.9,2.02024]
[1734016208278,0.25,3960.3,3959.9,2.02024]
[1734016208599,1.4672,3961.1,3959.4,2.0205]
[1734016208600,0.25,3960.7,3959.4,2.0205]
[1734016208801,1.4672,3961.1,3959.5,2.02045]
[1734016208802,0.25,3960.3,3959.5,2.02045]
[1734016209017,1.4672,3961.1,3959.9,0.55]
[1734016209018,0.25,3961.1,3959.9,0.55]
[1734016209166,0.25,3960.8,3960.6,2.01987]
[1734016209503,0.25,3961.8,3961.4,2.01948]
[1734016209703,0.25,3962.0,3961.2,3.23382861]
[1734016209910,0.25,3962.4,3961.2,3.80677659]
[1734016210062,0.25,3962.4,3961.3,3.0]
[1734016210266,0.25,3962.6,3961.8,2.01927]
[1734016210494,0.25,3962.4,3962.2,2.01903]
[1734016210706,0.25,3962.4,3961.4,3.63977]
[1734016210916,1.4672,3963.1,3961.4,3.63977]
[1734016210917,0.25,3962.0,3961.5,5.01943]
[1734016211206,0.25,3962.0,3961.9,2.01922]
[1734016211422,0.25,3962.0,3961.6,2.01935]
[1734016211590,6.13495462,3964.2,3959.6,1.5573]
[1734016211591,0.25,3960.9,3959.6,1.5573]
[1734016211911,0.25,3960.9,3959.7,0.22825599]
[1734016212206,0.25,3961.6,3960.0,3.23382861]
[1734016212427,0.25,3962.0,3961.8,2.01927]
[1734016212557,1.4672,3962.4,3961.3,2.01952]
[1734016212558,0.25,3962.2,3961.3,2.01952]
[1734016212763,0.25,3961.3,3960.1,3.65181]
[1734016213205,0.25,3961.3,3960.2,3.0]
[1734016213580,0.25,3961.9,3960.7,5.01981]
[1734016213729,0.25,3962.2,3960.8,1.6317]
[1734016213930,0.25,3962.2,3961.7,2.01932]
[1734016214084,0.25,3961.9,3961.7,2.01932]
[1734016214287,0.25,3961.9,3961.4,2.01945]
[1734016214486,0.25,3961.8,3960.3,2.02002]
[1734016214727,1.7172,3961.8,3960.6,4.03978]
[1734016214937,0.25,3961.8,3960.8,2.01979]
[1734016215098,0.25,3961.7,3960.7,3.55]
[1734016215304,0.25,3962.0,3961.8,2.01927]
[1734016215512,0.25,3962.0,3960.7,3.0]
[1734016215717,0.25,3962.0,3960.7,3.39225364]
[1734016215915,0.25,3962.0,3960.8,0.55]
[1734016216127,1.4672,3962.4,3961.7,2.01932]
[1734016216128,0.25,3962.2,3961.7,2.01932]
[1734016216289,0.25,3962.3,3962.0,2.01917]
[1734016216490,0.25,3962.3,3962.0,2.01918]
[1734016216791,0.25,3962.5,3961.5,3.0]
[1734016216987,0.25,3962.5,3961.7,2.01933]
[1734016217240,0.25,3962.2,3962.1,2.01909]
[1734016217532,0.25,3963.0,3962.9,2.01872]
[1734016217892,0.25,3963.0,3961.9,3.0]
[1734016218096,0.25,3963.0,3962.1,3.0]
[1734016218315,0.25,3962.8,3962.7,2.01879]
[1734016218609,0.25,3962.8,3962.7,2.01882]
[1734016218790,0.25,3963.3,3963.2,2.01857]
[1734016218992,1.7172,3963.9,3962.5,3.0]
[1734016219198,1.55,3964.4,3962.5,3.0]
[1734016219199,0.25,3963.8,3962.8,2.01877]
[1734016219395,0.25,3964.2,3964.1,2.01811]
[1734016219818,1.55,3964.4,3964.3,2.01801]
[1734016220228,0.28878,3964.4,3964.3,6.60831]
[1734016220409,0.28878,3964.4,3963.9,2.0182]
[1734016220723,0.53878,3964.4,3964.2,2.01803]
[1734016221240,0.25,3964.3,3963.3,2.0185]
[1734016221448,0.25,3963.9,3963.3,5.0185]
[1734016221657,0.25,3963.9,3963.4,3.0]
[1734016221799,0.25,3963.9,3963.6,2.01834]
[1734016222144,0.53878,3964.4,3963.3,3.0]
[1734016222309,0.25,3964.3,3963.3,3.00336086]
[1734016222514,0.25,3963.9,3963.7,2.01831]
[1734016222725,0.25,3964.1,3963.4,5.01841]
[1734016222945,0.25,3964.1,3963.2,1.5961]
[1734016222946,0.25,3964.2,3963.2,1.5961]
[1734016223243,0.25,3963.9,3962.6,4.559]
[1734016223453,1.75598,3964.4,3962.0,1.6403]
[1734016223454,0.25,3963.1,3962.0,1.6403]
[1734016223745,0.175598,3964.3,3962.2,2.01905]
[1734016223746,0.25,3962.8,3962.2,2.01905]
[1734016223898,0.25,3962.8,3962.3,2.019]
[1734016224094,0.25,3963.2,3962.0,1.6403]
[1734016224398,0.25,3963.7,3962.8,2.01877]
[1734016224746,1.4672,3963.9,3962.5,3.0]
[1734016224747,0.25,3963.4,3962.5,3.0]
[1734016224945,0.25,3964.0,3963.5,2.01841]
[1734016225131,0.25,3964.0,3963.0,6.23382861]
[1734016225332,0.25,3964.0,3963.5,2.01838]
[1734016225532,0.25,3964.0,3963.1,0.49697583]
[1734016225533,0.25,3963.4,3963.3,2.01851]
[1734016225750,0.25,3963.4,3963.1,3.23382861]
[1734016225751,0.25,3963.5,3963.1,3.23382861]
[1734016225905,0.25,3963.8,3963.2,2.01857]
[1734016226104,0.28878,3964.4,3963.2,2.01857]
[1734016226105,0.25,3964.0,3963.9,2.01821]
[1734016226329,0.28878,3964.4,3963.3,2.01851]
[1734016226330,0.53878,3964.4,3963.3,0.55]
[1734016226530,0.53878,3964.4,3964.3,2.01801]
[1734016226729,0.28878,3964.4,3964.3,2.01801]
[1734016227132,0.53878,3964.4,3964.3,2.01801]
[1734016227332,0.53878,3964.4,3963.7,5.5099601]
[1734016227532,0.53878,3964.4,3963.5,3.0]
[1734016227733,0.25,3964.2,3964.1,2.01811]
[1734016228223,0.25,3964.2,3963.5,3.0]
[1734016228511,0.25,3964.0,3963.2,3.0]
[1734016228738,0.28878,3964.4,3961.5,0.25]
[1734016228739,0.25,3963.8,3962.8,1.6189]
[1734016228934,0.25,3963.4,3963.1,2.01861]
[1734016229134,0.25,3963.4,3962.8,1.6189]
[1734016229446,0.25,3963.8,3963.0,2.01862]
[1734016229646,0.25,3963.9,3962.9,2.01872]
[1734016229806,0.25,3963.9,3963.8,2.01826]
[1734016230245,0.25,3964.2,3963.9,2.0182]
[1734016230447,0.25,3964.0,3963.9,2.0182]
[1734016230648,0.25,3964.0,3962.9,2.01872]
[1734016230649,0.25,3964.2,3963.1,2.01858]
[1734016230849,0.25,3963.9,3963.3,5.01846]
[1734016231149,0.25,3963.9,3962.9,3.0]
[1734016231453,0.25,3964.1,3963.8,2.01826]
[1734016231621,0.25,3963.8,3963.0,2.01867]
[1734016231951,0.25,3963.6,3962.5,2.0189]
[1734016232121,0.25,3963.0,3962.7,2.01879]
[1734016232349,0.25,3962.7,3962.6,2.01887]
[1734016232551,0.25,3962.9,3962.8,0.03420244]
[1734016232953,0.25,3962.9,3962.6,2.01883]
[1734016233174,0.25,3962.9,3962.8,0.03419753]
[1734016233355,0.25,3962.9,3962.6,2.01883]
[1734016233356,0.25,3962.9,3962.7,0.03419885]
[1734016233540,0.25,3962.9,3962.8,0.03419753]
[1734016233971,0.25,3962.5,3961.4,0.1269285]
[1734016234146,0.25,3962.5,3961.5,2.01943]
[1734016234341,0.25,3962.5,3962.2,2.01904]
[1734016234541,0.25,3962.5,3962.0,2.01917]
[1734016234778,1.744491,3963.5,3962.2,2.01908]
[1734016234779,0.25,3962.3,3962.2,2.01908]
[1734016235450,0.25,3962.5,3962.2,2.01908]
[1734016235785,0.25,3961.8,3960.8,1.5558]
[1734016235994,1.4672,3962.4,3960.8,1.5558]
[1734016235995,0.25,3961.5,3960.8,1.5558]
[1734016236139,0.25,3961.3,3960.8,1.5558]
[1734016236340,0.25,3960.9,3960.2,2.02009]
[1734016236541,0.25,3960.1,3959.7,0.50978118]
[1734016236772,0.25,3959.8,3959.7,0.50978118]
[1734016236986,0.25,3959.8,3959.3,0.3782837]
[1734016237154,0.25,3959.4,3959.3,0.3782837]
[1734016238270,0.25,3958.5,3958.1,2.02116]
[1734016238475,0.25,3958.8,3958.5,2.02093]
[1734016238670,0.25,3958.8,3958.7,2.02086]
[1734016238986,0.17172,3959.8,3958.7,2.02086]
[1734016238987,0.25,3959.0,3958.9,2.02076]
[1734016239355,0.25,3959.3,3959.2,2.02061]
[1734016239556,0.25,3959.5,3959.4,2.0205]
[1734016239755,0.25,3959.7,3959.6,2.0204]
[1734016240082,0.25,3959.9,3959.8,2.0203]
[1734016240963,0.25,3959.9,3959.1,1.6606]
[1734016241290,0.25,3959.9,3959.7,2.02035]
[1734016242349,0.25,3960.4,3960.3,2.02004]
[1734016242758,0.25,3960.4,3959.6,3.23382861]
[1734016242759,0.25,3960.4,3960.2,2.02009]
[1734016242961,0.25,3960.1,3959.1,5.45004286]
[1734016243151,0.25,3959.5,3959.1,1.6606]
[1734016243348,0.25,3959.3,3958.3,1.5909]
[1734016243552,3.99232,3960.2,3958.7,2.02086]
[1734016243553,0.25,3958.8,3958.7,2.02086]
[1734016243892,0.25,3958.8,3957.8,1.5673]
[1734016244061,0.25,3958.6,3958.4,2.02096]
[1734016244977,0.25,3959.1,3959.0,2.02071]
[1734016246287,0.25,3959.3,3959.2,2.02061]
[1734016246602,0.24696398,3959.3,3959.2,2.02061]
[1734016247074,0.24696398,3959.0,3958.8,2.0208]
[1734016247477,0.24696398,3959.2,3958.5,2.02095]
[1734016247690,0.24696398,3959.0,3958.9,2.02076]
[1734016248184,0.14672,3960.1,3958.6,5.02087]
[1734016248185,0.24696398,3958.8,3958.6,5.02087]
[1734016248386,0.24696398,3958.8,3958.3,2.02104]
[1734016248694,0.24696398,3958.4,3958.2,2.0211]
[1734016248877,0.24696398,3958.4,3958.3,2.02106]
[1734016249348,0.24696398,3957.7,3957.2,1.608]
[1734016249547,0.24696398,3957.7,3956.1,2.05152856]
[1734016249548,0.24696398,3957.4,3956.7,1.6426]
[1734016249794,0.24696398,3957.1,3956.9,2.02176]
[1734016250293,0.24696398,3957.1,3956.3,2.53900909]
[1734016250294,0.24696398,3956.6,3956.5,2.02198]
[1734016251698,0.25,3959.0,3956.5,2.02198]
[1734016251699,2.52567,3959.4,3956.9,1.6649]
[1734016251851,2.52493,3960.5,3956.9,1.6649]
[1734016251852,1.4672,3959.3,3957.9,2.02124]
[1734016252051,1.4672,3959.3,3957.5,3.0]
[1734016252052,1.4672,3959.3,3958.5,2.02096]
[1734016252260,1.4672,3959.3,3958.6,0.03961862]
[1734016252651,1.4672,3959.9,3958.4,2.021]
[1734016252849,1.4672,3959.9,3958.2,3.0]
[1734016252850,1.4672,3959.9,3958.6,3.0]
[1734016253054,1.4672,3959.9,3957.7,0.87399487]
[1734016253055,1.4672,3959.9,3959.8,2.0203]
[1734016253281,1.4672,3959.9,3957.6,0.50283716]
[1734016253464,1.4672,3959.9,3957.7,0.03698726]
[1734016253465,1.4672,3959.8,3957.7,0.03698726]
[1734016253666,1.4672,3958.8,3957.6,0.50283716]
[1734016253893,1.4672,3958.6,3957.7,0.03698725]
[1734016254078,2.52628,3958.4,3956.9,2.02178]
[1734016254258,1.4672,3958.5,3957.0,0.03699653]
[1734016254456,0.14672,3958.7,3956.3,2.02204]
[1734016254457,0.55,3958.2,3956.3,2.02209]
[1734016254653,0.55,3958.2,3956.4,0.03700448]
[1734016254910,1.4672,3957.4,3956.4,0.03700448]
[1734016255112,1.4672,3957.4,3953.4,2.02355]
[1734016255113,0.55,3956.6,3953.4,2.02355]
[1734016255315,2.52777,3956.1,3954.3,0.03587436]
[1734016255520,2.52748,3956.5,3954.3,0.03587436]
[1734016255521,2.52781,3956.0,3954.3,0.03587436]
[1734016255818,2.52784,3956.0,3954.6,2.02295]
[1734016256019,0.454504,3955.9,3954.3,0.03587436]
[1734016256220,1.4672,3956.2,3955.2,2.02263]
[1734016256400,1.4672,3956.2,3954.6,2.02294]
[1734016256564,1.4672,3956.2,3955.3,0.03582653]
[1734016256770,1.4672,3956.2,3955.3,2.02259]
[1734016257066,1.4672,3956.2,3955.4,0.03742176]
[1734016257281,1.4672,3956.2,3955.0,2.02271]
[1734016257282,0.14672,3956.1,3953.8,1.5726]
[1734016257519,0.14672,3956.1,3954.3,2.06055284]
[1734016257831,0.14672,3956.1,3955.2,2.02264]
[1734016257971,2.67446,3956.1,3954.7,2.0229]
[1734016258171,0.14672,3956.1,3955.3,0.03742957]
[1734016258518,0.161392,3956.0,3955.4,0.03742825]
[1734016258669,0.161392,3956.0,3954.9,2.02278]
[1734016258871,0.161392,3956.0,3955.0,0.03743355]
[1734016259183,0.161392,3956.0,3955.1,2.02267]
[1734016259385,1.4672,3956.2,3955.4,2.02251]
[1734016259587,1.4672,3956.2,3955.5,2.02249]
[1734016259881,1.4672,3956.2,3955.5,2.05991692]
[1734016260205,1.4672,3956.2,3955.5,0.03742692]
[1734016260368,2.52679,3957.6,3955.5,0.03742692]
[1734016260573,2.52679,3957.6,3955.0,2.0227]
[1734016260574,2.52697,3957.3,3955.6,2.02243]
[1734016260773,2.52726,3956.9,3955.7,2.02239]
[1734016261003,3.99414,3957.4,3955.6,0.03742404]
[1734016261004,1.4672,3957.4,3955.6,0.03742404]
[1734016261176,1.4672,3956.0,3955.8,0.03742138]
[1734016261385,1.4672,3956.0,3954.7,2.02289]
[1734016261699,2.52794,3955.8,3954.8,0.03743465]
[1734016261898,0.399496,3955.9,3954.2,0.1656626]
[1734016262126,2.52789,3955.9,3954.3,0.03744155]
[1734016262288,2.52789,3955.9,3954.6,2.02294]
[1734016262470,2.528,3955.7,3954.7,0.03759826]
[1734016262677,2.528,3955.7,3954.4,2.02303]
[1734016262887,1.4672,3955.8,3954.5,0.03760091]
[1734016263101,0.25,3956.3,3954.2,0.1656626]
[1734016263102,2.52844,3955.0,3954.2,0.1656626]
[1734016263317,2.52812,3955.5,3954.2,0.1656626]
[1734016263318,3.99574,3954.9,3954.3,0.0376046]
[1734016263519,3.99574,3954.9,3954.2,0.1656626]
[1734016263520,1.4672,3954.9,3954.2,0.1656626]
[1734016264179,1.4672,3954.9,3954.3,0.03607295]
[1734016265024,1.4672,3954.9,3954.4,2.02304]
[1734016265226,1.4672,3954.9,3954.2,0.1656626]
[1734016265524,1.4672,3955.6,3954.2,0.1656626]
[1734016265726,1.4672,3955.6,3954.3,0.25493899]
[1734016266074,1.4672,3955.6,3955.0,2.02271]
[1734016266274,1.4672,3955.6,3955.1,0.03604311]
[1734016266723,1.4672,3955.6,3954.4,2.02306]
[1734016266929,1.4672,3955.6,3954.5,0.03605107]
[1734016267129,0.14672,3955.5,3954.5,0.03605107]
[1734016267476,2.52827,3955.3,3954.2,0.1656626]
[1734016267819,0.14672,3955.5,3954.3,2.05873017]
[1734016267984,1.4672,3955.6,3954.3,0.03564017]
[1734016268536,1.4672,3955.6,3955.5,2.0225]
[1734016268717,1.4672,3957.1,3956.8,2.02182]
[1734016268922,1.4672,3957.1,3955.6,2.02244]
[1734016268923,0.26063334,3956.7,3955.8,3.0]
[1734016269219,0.26063334,3956.7,3956.6,2.02189]
[1734016269436,0.26063334,3956.7,3955.1,3.0]
[1734016269607,1.4672,3957.8,3954.4,0.12383036]
[1734016269608,4.70102861,3957.8,3955.2,1.6237]
[1734016269921,4.70102861,3957.8,3955.7,2.02239]
[1734016269922,1.4672,3956.9,3955.7,2.02239]
[1734016270835,1.4672,3956.9,3955.3,3.0]
[1734016270993,1.4672,3957.4,3956.9,2.02176]
[1734016271184,1.4672,3957.4,3955.6,0.55]
[1734016271383,1.4672,3958.0,3956.2,2.02214]
[1734016271606,0.19294844,3957.9,3957.0,2.02171]
[1734016271790,0.19294844,3957.9,3956.0,5.25604861]
[1734016271791,0.19294844,3957.9,3955.5,3.0]
[1734016271992,0.19294844,3957.9,3955.9,2.02229]
[1734016272213,2.71953844,3957.9,3956.5,2.02194]
[1734016272417,0.19294844,3957.9,3956.0,0.55]
[1734016272739,1.4672,3958.6,3956.5,2.1595]
[1734016272917,1.4672,3958.6,3956.8,0.55]
[1734016273078,1.7276658,3959.1,3957.5,2.02147]
[1734016273281,1.7276658,3959.1,3957.4,1.6098]
[1734016273516,1.4672,3959.1,3958.5,2.02095]
[1734016273678,1.61392,3959.1,3957.5,4.04294]
[1734016273880,1.61392,3959.1,3957.4,1.6098]
[1734016274279,1.61392,3959.1,3957.5,3.0]
[1734016274516,1.61392,3959.1,3957.4,1.6098]
[1734016274517,1.61392,3959.1,3957.6,3.0]
[1734016274730,1.61392,3959.1,3958.2,1.76846]
[1734016274896,0.161392,3959.0,3958.2,1.76846]
[1734016275097,1.4672,3959.1,3957.9,1.76861]
[1734016275300,3.27772611,3959.8,3958.0,0.03414713]
[1734016275485,3.0172,3959.8,3958.0,0.03414713]
[1734016275687,2.52585,3959.1,3958.0,0.03414713]
[1734016275913,2.52591,3959.0,3957.7,1.7687]
[1734016276123,1.4672,3958.7,3957.8,0.03415676]
[1734016276431,1.4672,3958.7,3957.4,1.6098]
[1734016276724,1.4672,3958.7,3957.1,3.0]
[1734016276725,2.5263,3958.4,3957.1,1.76896]
[1734016277227,3.99332,3958.7,3957.2,0.03077761]
[1734016277439,3.99332,3958.7,3957.4,1.76883]
[1734016277642,0.4245911,3958.6,3956.9,1.6275]
[1734016277793,1.4672,3958.7,3957.5,0.03077364]
[1734016278150,2.52616,3958.6,3957.6,0.03077231]
[1734016278441,2.52616,3958.6,3956.9,4.6275]
[1734016278598,1.4672,3958.7,3957.0,3.0]
[1734016278795,1.4672,3959.7,3957.3,3.0]
[1734016278995,0.71575481,3959.6,3957.4,0.62338286]
[1734016279228,2.7585841,3959.5,3958.2,1.76844]
[1734016279435,2.52564,3959.4,3958.2,1.76844]
[1734016279737,0.2329841,3959.5,3958.3,0.03076304]
[1734016280097,1.55,3959.3,3958.4,0.03076171]
[1734016280291,1.55,3959.3,3959.1,1.76807]
[1734016280545,1.55,3959.3,3958.4,0.03076171]
[1734016280546,1.55,3959.3,3959.2,0.02973087]
[1734016280700,1.55,3959.3,3958.8,1.7682]
[1734016280894,1.55,3959.3,3958.5,3.0]
[1734016280895,1.55,3959.3,3958.9,0.02972448]
[1734016281095,1.55,3959.3,3958.4,3.23382861]
[1734016281331,1.55,3959.3,3959.0,1.76811]
[1734016281642,1.55,3959.3,3959.1,0.02972183]
[1734016281996,1.4672,3959.2,3957.5,1.6188]
[1734016282200,1.4672,3959.2,3957.6,1.76874]
[1734016282442,1.4672,3959.2,3958.1,1.76851]
[1734016282613,0.30172,3959.1,3958.1,1.76851]
[1734016282939,0.30172,3959.1,3958.2,0.02927666]
[1734016283341,0.30172,3959.1,3958.2,1.79774666]
[1734016283557,2.82754,3959.1,3958.2,0.02927666]
[1734016283766,0.30172,3959.1,3957.6,3.0]
[1734016284039,1.4672,3959.2,3957.9,3.0]
[1734016284210,1.4672,3959.2,3958.0,1.76856]
[1734016284415,1.4672,3959.2,3958.1,1.76848]
[1734016284614,1.4672,3959.2,3958.0,0.0296594]
[1734016284828,1.4672,3959.2,3958.2,0.0296723]
[1734016285030,1.4672,3959.2,3958.1,0.029683]
[1734016285031,2.52596,3958.9,3958.1,0.029683]
[1734016285255,2.52602,3958.8,3958.3,0.02967537]
[1734016285400,2.52602,3958.8,3958.2,0.0296767]
[1734016285602,2.9826,3959.1,3958.2,0.0296767]
[1734016285830,2.5259,3959.0,3957.6,3.0]
[1734016286040,0.444982,3958.9,3958.3,0.02967537]
[1734016286217,0.444982,3958.9,3957.9,1.76859]
[1734016286404,0.45672,3959.1,3957.5,1.6188]
[1734016286633,3.1,3959.3,3957.5,1.6188]
[1734016286634,3.1,3959.3,3959.0,1.76811]
[1734016286849,3.1,3959.3,3958.4,3.23382861]
[1734016286850,3.1,3959.3,3959.1,1.76804]
[1734016287009,3.1,3959.3,3959.1,0.02975229]
[1734016287554,3.1,3959.3,3959.0,1.76811]
[1734016287849,3.1,3959.3,3958.5,3.0]
[1734016287850,3.1,3959.3,3959.1,0.02974841]
[1734016288236,3.1,3959.3,3958.5,3.0]
[1734016288435,3.41,3959.3,3958.1,1.5853]
[1734016288680,3.41,3959.3,3958.6,0.02975503]
[1734016288943,3.41,3959.3,3958.7,0.02974853]
[1734016289258,3.41,3959.3,3958.9,1.76815]
[1734016289462,3.1,3959.3,3959.2,1.76803]
[1734016289804,3.1,3959.3,3959.2,1.7977719]
[1734016290324,0.5743,3959.3,3959.2,1.7977719]
[1734016290649,1e-05,3959.3,3959.2,25.00514795]
[1734016290951,1e-05,3959.3,3959.2,28.77112656]
[1734016291120,1.55,3959.8,3959.5,1.76786]
[1734016291322,1.55,3959.8,3959.2,5.03156051]
[1734016291521,1.55,3959.8,3959.3,1.76797]
[1734016291741,1.86,3959.8,3959.4,0.0286547]
[1734016291912,1.86,3959.8,3958.9,1.76816]
[1734016292111,1.55,3959.8,3959.0,0.0286561]
[1734016292652,1.55,3959.8,3958.6,4.77632861]
[1734016292861,1.55,3959.8,3959.1,1.79669478]
[1734016293153,1.55,3959.8,3959.2,0.02865345]
[1734016293314,1.55,3959.8,3958.6,4.77632861]
[1734016293513,1.55,3959.8,3958.7,0.50629294]
[1734016294169,1.55,3959.8,3959.2,3.23382861]
[1734016294309,1.55,3959.8,3959.7,1.76781]
[1734016294510,1.55,3959.8,3959.7,3.37965683]
[1734016294740,1.55,3959.8,3959.7,44.72000183]
[1734016295056,1.55,3959.8,3959.7,1.61184683]
[1734016295259,1.55,3959.8,3959.7,0.02864683]
[1734016295753,1.55,3959.8,3959.3,3.23382861]
[1734016296160,1.55,3959.8,3959.4,0.02864562]
[1734016296335,1.55,3959.8,3959.6,1.76782]
[1734016296644,1.55,3959.8,3959.7,0.02864683]
[1734016297210,1.55,3959.8,3959.5,1.76789]
[1734016297411,1.55,3959.8,3959.7,0.02864683]